[Event "*** Titled Tuesday Blitz"]
[Site "Chess.com"]
[Date "2021.04.27"]
[Round "8"]
[White "ukchessbomber"]
[Black "Dinamo81"]
[Result "1-0"]
[WhiteElo "2530"]
[BlackElo "2678"]
[TimeControl "180+1"]
[EndTime "11:29:42 PDT"]
[Termination "ukchessbomber won on time"]

1. d4 {[%clk 0:02:55.5]} 1... d5 {[%clk 0:02:59]} 2. c4 {[%clk 0:02:56]} 2... e6
{[%clk 0:02:59.2]} 3. Nc3 {[%clk 0:02:56.7]} 3... a6 {[%clk 0:02:58.9]} 4. cxd5
{[%clk 0:02:57.6]} 4... exd5 {[%clk 0:02:58.8]} 5. Bf4 {[%clk 0:02:58.5]} 5...
c6 {[%clk 0:02:58.7]} 6. e3 {[%clk 0:02:59.4]} 6... Bd6 {[%clk 0:02:58.6]} 7.
Bxd6 {[%clk 0:02:58.4]} 7... Qxd6 {[%clk 0:02:59.5]} 8. Bd3 {[%clk 0:02:59.3]}
8... Ne7 {[%clk 0:02:59.2]} 9. Nf3 {[%clk 0:02:57.5]} 9... Bf5 {[%clk
0:02:58.6]} 10. Qb3 {[%clk 0:02:58.1]} 10... Bxd3 {[%clk 0:02:52.1]} 11. Qxb7
{[%clk 0:02:57.3]} 11... O-O {[%clk 0:02:48.4]} 12. Qxa8 {[%clk 0:02:45.6]}
12... Qc7 {[%clk 0:02:39.1]} 13. Ne5 {[%clk 0:02:41.9]} 13... Bf5 {[%clk
0:02:37.1]} 14. O-O {[%clk 0:02:28.3]} 14... f6 {[%clk 0:02:33.6]} 15. Nf3
{[%clk 0:02:24.1]} 15... Bc8 {[%clk 0:02:18.9]} 16. e4 {[%clk 0:01:30.2]} 16...
Bb7 {[%clk 0:01:24.3]} 17. Qa7 {[%clk 0:01:28.5]} 17... Nd7 {[%clk 0:01:23.8]}
18. exd5 {[%clk 0:01:23]} 18... Nc8 {[%clk 0:01:10.9]} 19. d6 {[%clk 0:01:22.5]}
19... Nxd6 {[%clk 0:01:10.9]} 20. d5 {[%clk 0:01:22.8]} 20... c5 {[%clk
0:01:09.5]} 21. Rfe1 {[%clk 0:00:46]} 21... Ra8 {[%clk 0:01:09.5]} 22. Qxa8+
{[%clk 0:00:44]} 22... Bxa8 {[%clk 0:01:10.4]} 23. Rac1 {[%clk 0:00:40.1]} 23...
Kf7 {[%clk 0:01:04.7]} 24. b3 {[%clk 0:00:39.7]} 24... Nb6 {[%clk 0:01:00.4]}
25. Rcd1 {[%clk 0:00:33]} 25... Nf5 {[%clk 0:01:00.4]} 26. g4 {[%clk 0:00:29.3]}
26... Nd4 {[%clk 0:00:58.7]} 27. Nxd4 {[%clk 0:00:20.8]} 27... cxd4 {[%clk
0:00:59.6]} 28. Ne4 {[%clk 0:00:21.7]} 28... Bxd5 {[%clk 0:00:54.1]} 29. Rxd4
{[%clk 0:00:22.1]} 29... Qc6 {[%clk 0:00:53]} 30. f3 {[%clk 0:00:12.8]} 30...
Bxe4 {[%clk 0:00:50.7]} 31. Rexe4 {[%clk 0:00:12.3]} 31... Nd5 {[%clk 0:00:48]}
32. Rc4 {[%clk 0:00:11.9]} 32... Qb6+ {[%clk 0:00:47.8]} 33. Red4 {[%clk
0:00:07.5]} 33... g5 {[%clk 0:00:43.8]} 34. Kh1 {[%clk 0:00:06.5]} 34... Nf4
{[%clk 0:00:35.4]} 35. Rd7+ {[%clk 0:00:04.6]} 35... Ke6 {[%clk 0:00:34]} 36.
Rd1 {[%clk 0:00:02.5]} 36... Qb7 {[%clk 0:00:33.2]} 37. Re4+ {[%clk 0:00:02.7]}
37... Kf7 {[%clk 0:00:33.4]} 38. Rde1 {[%clk 0:00:03]} 38... Kg6 {[%clk
0:00:33.3]} 39. h4 {[%clk 0:00:02.6]} 39... h5 {[%clk 0:00:31.7]} 40. hxg5
{[%clk 0:00:02.3]} 40... Kxg5 {[%clk 0:00:31]} 41. gxh5 {[%clk 0:00:02.3]} 41...
Nxh5 {[%clk 0:00:28.3]} 42. Rg4+ {[%clk 0:00:03.2]} 42... Kh6 {[%clk 0:00:27.3]}
43. Kg2 {[%clk 0:00:03]} 43... Qd5 {[%clk 0:00:26.3]} 44. Rh1 {[%clk 0:00:01.8]}
44... Qd2+ {[%clk 0:00:26.3]} 45. Kg1 {[%clk 0:00:02.4]} 45... Qe1+ {[%clk
0:00:24]} 46. Kg2 {[%clk 0:00:02.6]} 46... Qe2+ {[%clk 0:00:24.3]} 47. Kg1
{[%clk 0:00:03]} 47... Qxa2 {[%clk 0:00:14.6]} 48. Rgh4 {[%clk 0:00:03]} 48...
Qb1+ {[%clk 0:00:14.3]} 49. Kg2 {[%clk 0:00:03.5]} 49... Qc2+ {[%clk 0:00:14.6]}
50. Kg1 {[%clk 0:00:04.1]} 50... Qxb3 {[%clk 0:00:14.8]} 51. Rxh5+ {[%clk
0:00:03.9]} 51... Kg6 {[%clk 0:00:15.4]} 52. Kf2 {[%clk 0:00:04.1]} 52... Qc2+
{[%clk 0:00:14.7]} 53. Kg3 {[%clk 0:00:04.6]} 53... Qd2 {[%clk 0:00:14.4]} 54.
R5h2 {[%clk 0:00:02.4]} 54... Qd6+ {[%clk 0:00:13.5]} 55. Kf2 {[%clk 0:00:03.3]}
55... Qd4+ {[%clk 0:00:12]} 56. Kg3 {[%clk 0:00:03.3]} 56... a5 {[%clk
0:00:11.8]} 57. Rg2 {[%clk 0:00:03.3]} 57... a4 {[%clk 0:00:09.1]} 58. Rh4
{[%clk 0:00:03.2]} 58... Qe5+ {[%clk 0:00:08.1]} 59. Kf2+ {[%clk 0:00:03.2]}
59... Kf7 {[%clk 0:00:07.9]} 60. Rxa4 {[%clk 0:00:02.7]} 60... Qb2+ {[%clk
0:00:06.8]} 61. Kg3 {[%clk 0:00:02.6]} 61... Qb8+ {[%clk 0:00:06.7]} 62. Rf4
{[%clk 0:00:03]} 62... Qe5 {[%clk 0:00:05.7]} 63. Rh2 {[%clk 0:00:01.5]} 63...
Qe1+ {[%clk 0:00:04.9]} 64. Kg4 {[%clk 0:00:01.7]} 64... Qg1+ {[%clk 0:00:04.6]}
65. Kh3 {[%clk 0:00:02.3]} 65... Qf1+ {[%clk 0:00:04.1]} 66. Kg3 {[%clk
0:00:02.6]} 66... Qg1+ {[%clk 0:00:04.2]} 67. Rg2 {[%clk 0:00:02.8]} 67... Qe1+
{[%clk 0:00:03.9]} 68. Rf2 {[%clk 0:00:03.4]} 68... Qe5 {[%clk 0:00:04]} 69. Rg2
{[%clk 0:00:03.8]} 69... Qg5+ {[%clk 0:00:03.9]} 70. Rg4 {[%clk 0:00:04.4]}
70... Qe5+ {[%clk 0:00:04.4]} 71. Kf2 {[%clk 0:00:05]} 71... Qb2+ {[%clk
0:00:04.1]} 72. Kg1 {[%clk 0:00:05.5]} 72... Qc1+ {[%clk 0:00:03.6]} 73. Kf2
{[%clk 0:00:06.1]} 73... Qd2+ {[%clk 0:00:03.6]} 74. Kf1 {[%clk 0:00:06.7]}
74... Qd1+ {[%clk 0:00:04.1]} 75. Kf2 {[%clk 0:00:07.3]} 75... Qd2+ {[%clk
0:00:04.5]} 76. Kg1 {[%clk 0:00:07.3]} 76... Qd1+ {[%clk 0:00:04.4]} 77. Kh2
{[%clk 0:00:08.2]} 77... Qxf3 {[%clk 0:00:04.8]} 78. Rg7+ {[%clk 0:00:08]} 78...
Ke6 {[%clk 0:00:05]} 79. R7g4 {[%clk 0:00:08.6]} 79... Qe3 {[%clk 0:00:04.6]}
80. R2g3 {[%clk 0:00:08.7]} 80... Qf2+ {[%clk 0:00:04.3]} 81. Kh3 {[%clk
0:00:09.6]} 81... Qf1+ {[%clk 0:00:04]} 82. Rg2 {[%clk 0:00:09.2]} 82... f5
{[%clk 0:00:04.9]} 83. Rg6+ {[%clk 0:00:09.1]} 83... Ke5 {[%clk 0:00:05.3]} 84.
Rg3 {[%clk 0:00:09.3]} 84... Qh1+ {[%clk 0:00:05.6]} 85. Rh2 {[%clk 0:00:08.8]}
85... Qf1+ {[%clk 0:00:05.7]} 86. Kh4 {[%clk 0:00:09.4]} 86... f4 {[%clk
0:00:05]} 87. Rg5+ {[%clk 0:00:09.5]} 87... Ke4 {[%clk 0:00:05.3]} 88. Kh5
{[%clk 0:00:07.9]} 88... Qf3+ {[%clk 0:00:04.3]} 89. Kg6 {[%clk 0:00:08.4]}
89... Qd3 {[%clk 0:00:03]} 90. Rh8 {[%clk 0:00:08.1]} 90... Kf3+ {[%clk
0:00:02.5]} 91. Kf7 {[%clk 0:00:04.9]} 91... Qd7+ {[%clk 0:00:02.2]} 92. Kf6
{[%clk 0:00:05.4]} 92... Qd6+ {[%clk 0:00:02.5]} 93. Kf7 {[%clk 0:00:05.5]}
93... Qd7+ {[%clk 0:00:01.4]} 94. Kg6 {[%clk 0:00:04.1]} 1-0

[Event "*** Titled Tuesday Blitz"]
[Site "Chess.com"]
[Date "2021.04.27"]
[Round "8"]
[White "Julianos82"]
[Black "AttackSparrow"]
[Result "1/2-1/2"]
[WhiteElo "2318"]
[BlackElo "2474"]
[TimeControl "180+1"]
[EndTime "11:30:01 PDT"]
[Termination "Game drawn - insufficient material"]

1. d4 {[%clk 0:03:00.9]} 1... Nf6 {[%clk 0:02:54.6]} 2. Nf3 {[%clk 0:03:00.7]}
2... c5 {[%clk 0:02:50.4]} 3. d5 {[%clk 0:02:56.5]} 3... g6 {[%clk 0:02:48.9]}
4. c4 {[%clk 0:02:56]} 4... b5 {[%clk 0:02:47.4]} 5. cxb5 {[%clk 0:02:50.9]}
5... a6 {[%clk 0:02:46.9]} 6. Nc3 {[%clk 0:02:49.7]} 6... Bg7 {[%clk 0:02:46.7]}
7. e4 {[%clk 0:02:49.6]} 7... O-O {[%clk 0:02:46.9]} 8. e5 {[%clk 0:02:41.4]}
8... Ng4 {[%clk 0:02:42.2]} 9. Bf4 {[%clk 0:02:32.5]} 9... d6 {[%clk 0:02:37.2]}
10. exd6 {[%clk 0:02:17.9]} 10... exd6 {[%clk 0:02:38.1]} 11. h3 {[%clk
0:02:07.7]} 11... Re8+ {[%clk 0:02:33.1]} 12. Be2 {[%clk 0:02:07.6]} 12... Ne5
{[%clk 0:02:27.2]} 13. O-O {[%clk 0:02:03.4]} 13... axb5 {[%clk 0:02:25.1]} 14.
Nxb5 {[%clk 0:01:53.5]} 14... Ba6 {[%clk 0:02:22.3]} 15. Nxe5 {[%clk 0:01:39.6]}
15... Bxe5 {[%clk 0:02:18.6]} 16. Bxe5 {[%clk 0:01:37.1]} 16... Rxe5 {[%clk
0:02:18.2]} 17. Re1 {[%clk 0:01:29.7]} 17... Qe7 {[%clk 0:02:01.3]} 18. Bf1
{[%clk 0:01:24.8]} 18... Bb7 {[%clk 0:01:25.7]} 19. Rxe5 {[%clk 0:01:20.4]}
19... Qxe5 {[%clk 0:01:26.6]} 20. Nc3 {[%clk 0:01:14.9]} 20... Nd7 {[%clk
0:01:24.3]} 21. Qd2 {[%clk 0:01:13]} 21... Re8 {[%clk 0:01:20.3]} 22. a4 {[%clk
0:01:12.3]} 22... Nb6 {[%clk 0:01:17.6]} 23. a5 {[%clk 0:01:08.1]} 23... Nxd5
{[%clk 0:01:17.6]} 24. a6 {[%clk 0:01:06.6]} 24... Ba8 {[%clk 0:01:09.9]} 25.
Nxd5 {[%clk 0:00:52.1]} 25... Bxd5 {[%clk 0:01:10.8]} 26. a7 {[%clk 0:00:50.1]}
26... Ba8 {[%clk 0:01:11.2]} 27. f3 {[%clk 0:00:45.6]} 27... d5 {[%clk
0:01:08.1]} 28. Ra5 {[%clk 0:00:39.4]} 28... d4 {[%clk 0:01:07.9]} 29. Bc4
{[%clk 0:00:35.7]} 29... Qc7 {[%clk 0:01:06.2]} 30. b4 {[%clk 0:00:33.3]} 30...
cxb4 {[%clk 0:00:47.4]} 31. Qxb4 {[%clk 0:00:34.2]} 31... Qg3 {[%clk 0:00:24]}
32. Ra1 {[%clk 0:00:19.8]} 32... Bxf3 {[%clk 0:00:21.7]} 33. Bxf7+ {[%clk
0:00:19.5]} 33... Kxf7 {[%clk 0:00:20.6]} 34. Qb3+ {[%clk 0:00:19.7]} 34... Kg7
{[%clk 0:00:18.6]} 35. Qxf3 {[%clk 0:00:19.6]} 35... Qxf3 {[%clk 0:00:17.5]} 36.
gxf3 {[%clk 0:00:20.5]} 36... Ra8 {[%clk 0:00:17.7]} 37. Kf2 {[%clk 0:00:20.8]}
37... Kf6 {[%clk 0:00:18.2]} 38. Ke2 {[%clk 0:00:20.6]} 38... Ke5 {[%clk
0:00:17.7]} 39. Kd3 {[%clk 0:00:20.3]} 39... Kf4 {[%clk 0:00:05.7]} 40. Ke2
{[%clk 0:00:20.4]} 40... d3+ {[%clk 0:00:04]} 41. Kf2 {[%clk 0:00:19.5]} 41...
d2 {[%clk 0:00:03.8]} 42. Ra4+ {[%clk 0:00:19.4]} 42... Kf5 {[%clk 0:00:03.5]}
43. Rd4 {[%clk 0:00:18.6]} 43... Rxa7 {[%clk 0:00:03.6]} 44. Rxd2 {[%clk
0:00:17.7]} 44... Re7 {[%clk 0:00:03.9]} 45. Rd4 {[%clk 0:00:17.3]} 45... Ra7
{[%clk 0:00:03.2]} 46. Rc4 {[%clk 0:00:16.7]} 46... h5 {[%clk 0:00:03.4]} 47. h4
{[%clk 0:00:16.7]} 47... Ra2+ {[%clk 0:00:02.8]} 48. Kg3 {[%clk 0:00:16.8]}
48... Ra6 {[%clk 0:00:03.7]} 49. Rb4 {[%clk 0:00:16.8]} 49... Kf6 {[%clk
0:00:04.1]} 50. Rc4 {[%clk 0:00:16.9]} 50... Rd6 {[%clk 0:00:04.2]} 51. Rb4
{[%clk 0:00:16.9]} 51... Rc6 {[%clk 0:00:04.8]} 52. Ra4 {[%clk 0:00:16.6]} 52...
Rc5 {[%clk 0:00:05.3]} 53. Rb4 {[%clk 0:00:16.5]} 53... Kf5 {[%clk 0:00:05.8]}
54. Rf4+ {[%clk 0:00:15.7]} 54... Ke5 {[%clk 0:00:05.7]} 55. Re4+ {[%clk
0:00:16.6]} 55... Kf6 {[%clk 0:00:05.7]} 56. Rf4+ {[%clk 0:00:16.8]} 56... Kg7
{[%clk 0:00:06.2]} 57. Re4 {[%clk 0:00:17]} 57... Rd5 {[%clk 0:00:06.4]} 58. Rf4
{[%clk 0:00:16.5]} 58... Kh6 {[%clk 0:00:06.1]} 59. Ra4 {[%clk 0:00:16]} 59...
Rb5 {[%clk 0:00:06.1]} 60. Rc4 {[%clk 0:00:15.7]} 60... Rd5 {[%clk 0:00:06]} 61.
Rb4 {[%clk 0:00:15.8]} 61... Ra5 {[%clk 0:00:05.8]} 62. Rc4 {[%clk 0:00:15.8]}
62... Rb5 {[%clk 0:00:05.9]} 63. Rd4 {[%clk 0:00:15.8]} 63... Rc5 {[%clk
0:00:06.1]} 64. Rd7 {[%clk 0:00:14.6]} 64... Rc1 {[%clk 0:00:06.2]} 65. Kg2
{[%clk 0:00:14.2]} 65... Rc2+ {[%clk 0:00:06]} 66. Kg3 {[%clk 0:00:14.4]} 66...
Rc4 {[%clk 0:00:06.2]} 67. Re7 {[%clk 0:00:14]} 67... Rc5 {[%clk 0:00:06.2]} 68.
Rd7 {[%clk 0:00:14.1]} 68... Re5 {[%clk 0:00:06]} 69. Rc7 {[%clk 0:00:14]} 69...
Rf5 {[%clk 0:00:06.3]} 70. Rb7 {[%clk 0:00:13.9]} 70... Ra5 {[%clk 0:00:06.4]}
71. Rc7 {[%clk 0:00:13.9]} 71... Rb5 {[%clk 0:00:06.4]} 72. Rd7 {[%clk
0:00:13.9]} 72... Rc5 {[%clk 0:00:06.9]} 73. Rb7 {[%clk 0:00:13.6]} 73... Rc1
{[%clk 0:00:07.3]} 74. Ra7 {[%clk 0:00:13.3]} 74... Rc4 {[%clk 0:00:06.7]} 75.
Rb7 {[%clk 0:00:12.7]} 75... Rd4 {[%clk 0:00:07]} 76. Ra7 {[%clk 0:00:12.6]}
76... Rd1 {[%clk 0:00:07.3]} 77. Rb7 {[%clk 0:00:12.7]} 77... Rg1+ {[%clk
0:00:07.7]} 78. Kh2 {[%clk 0:00:12.9]} 78... Rf1 {[%clk 0:00:07.9]} 79. Kg2
{[%clk 0:00:12.9]} 79... Rd1 {[%clk 0:00:08.4]} 80. Kg3 {[%clk 0:00:13.1]} 80...
Rd6 {[%clk 0:00:08.8]} 81. Ra7 {[%clk 0:00:13]} 81... Rf6 {[%clk 0:00:09]} 82.
Rb7 {[%clk 0:00:12.9]} 82... Rf5 {[%clk 0:00:09.4]} 83. Ra7 {[%clk 0:00:13]}
83... Rd5 {[%clk 0:00:09.3]} 84. Rb7 {[%clk 0:00:13]} 84... Rc5 {[%clk
0:00:09.2]} 85. Ra7 {[%clk 0:00:13.2]} 85... g5 {[%clk 0:00:09.4]} 86. Ra6+
{[%clk 0:00:12.3]} 86... Kg7 {[%clk 0:00:09.8]} 87. hxg5 {[%clk 0:00:12.5]}
87... Rxg5+ {[%clk 0:00:10.7]} 88. Kh4 {[%clk 0:00:12.8]} 88... Rf5 {[%clk
0:00:11.1]} 89. Rb6 {[%clk 0:00:11.6]} 89... Kf7 {[%clk 0:00:11.3]} 90. Ra6
{[%clk 0:00:11.7]} 90... Kg7 {[%clk 0:00:11.4]} 91. Rb6 {[%clk 0:00:11.9]} 91...
Rxf3 {[%clk 0:00:11.8]} 92. Kxh5 {[%clk 0:00:11.6]} 92... Rf5+ {[%clk
0:00:12.3]} 93. Kg4 {[%clk 0:00:11.7]} 93... Rc5 {[%clk 0:00:13.2]} 94. Ra6
{[%clk 0:00:11.2]} 94... Kf7 {[%clk 0:00:13.7]} 95. Rb6 {[%clk 0:00:11.4]} 95...
Rc4+ {[%clk 0:00:14.1]} 96. Kf5 {[%clk 0:00:10.9]} 96... Rc5+ {[%clk 0:00:15]}
97. Ke4 {[%clk 0:00:10.8]} 97... Ke7 {[%clk 0:00:15.7]} 98. Ra6 {[%clk
0:00:10.5]} 98... Rh5 {[%clk 0:00:15.6]} 99. Rg6 {[%clk 0:00:10.5]} 99... Kf7
{[%clk 0:00:14.6]} 100. Ra6 {[%clk 0:00:09.8]} 100... Rh4+ {[%clk 0:00:15]} 101.
Kf5 {[%clk 0:00:09.8]} 101... Rb4 {[%clk 0:00:15.9]} 102. Ra7+ {[%clk
0:00:09.2]} 102... Ke8 {[%clk 0:00:16.4]} 103. Ra8+ {[%clk 0:00:09.3]} 103...
Kd7 {[%clk 0:00:16.2]} 104. Ra6 {[%clk 0:00:09.4]} 104... Kc7 {[%clk 0:00:16.5]}
105. Ke5 {[%clk 0:00:09.2]} 105... Rb5+ {[%clk 0:00:17]} 106. Ke6 {[%clk
0:00:08.2]} 106... Kb7 {[%clk 0:00:17.9]} 107. Ra2 {[%clk 0:00:08.2]} 107... Rh5
{[%clk 0:00:18.3]} 108. Rb2+ {[%clk 0:00:07.9]} 108... Kc6 {[%clk 0:00:18.8]}
109. Rd2 {[%clk 0:00:08.1]} 109... Kb5 {[%clk 0:00:18.7]} 110. Rd5+ {[%clk
0:00:07.5]} 110... Rxd5 {[%clk 0:00:19.2]} 111. Kxd5 {[%clk 0:00:08.4]} 1/2-1/2

[Event "*** Titled Tuesday Blitz"]
[Site "Chess.com"]
[Date "2021.04.27"]
[Round "8"]
[White "MarcoRiehle"]
[Black "SF-96"]
[Result "1/2-1/2"]
[WhiteElo "2713"]
[BlackElo "2613"]
[TimeControl "180+1"]
[EndTime "11:30:02 PDT"]
[Termination "Game drawn by 50-move rule"]

1. e4 {[%clk 0:03:00.9]} 1... e5 {[%clk 0:03:00]} 2. Nf3 {[%clk 0:03:00.7]} 2...
Nc6 {[%clk 0:03:00.6]} 3. Bc4 {[%clk 0:03:00.6]} 3... Bc5 {[%clk 0:03:00.6]} 4.
O-O {[%clk 0:02:59.8]} 4... Nf6 {[%clk 0:03:00.6]} 5. d4 {[%clk 0:02:59.5]} 5...
Bxd4 {[%clk 0:03:01.2]} 6. Nxd4 {[%clk 0:02:59.6]} 6... Nxd4 {[%clk 0:03:02.1]}
7. Bg5 {[%clk 0:02:59.8]} 7... d6 {[%clk 0:02:55.7]} 8. f4 {[%clk 0:02:59]} 8...
Qe7 {[%clk 0:02:47.6]} 9. Na3 {[%clk 0:02:55.8]} 9... Be6 {[%clk 0:02:43.8]} 10.
c3 {[%clk 0:02:54.1]} 10... Bxc4 {[%clk 0:02:38.6]} 11. Nxc4 {[%clk 0:02:55]}
11... Ne6 {[%clk 0:02:38.9]} 12. fxe5 {[%clk 0:02:55]} 12... dxe5 {[%clk
0:02:34.3]} 13. Bxf6 {[%clk 0:02:55.1]} 13... gxf6 {[%clk 0:02:33.8]} 14. b4
{[%clk 0:02:53.5]} 14... Rg8 {[%clk 0:02:25.1]} 15. Kh1 {[%clk 0:02:48.9]} 15...
Nf4 {[%clk 0:02:17]} 16. g3 {[%clk 0:02:47.9]} 16... Rd8 {[%clk 0:01:44.1]} 17.
Qa4+ {[%clk 0:02:44.4]} 17... c6 {[%clk 0:01:44.7]} 18. Qxa7 {[%clk 0:02:31.3]}
18... Qe6 {[%clk 0:01:36.8]} 19. Ne3 {[%clk 0:02:22.8]} 19... Rxg3 {[%clk
0:01:27.2]} 20. Nf5 {[%clk 0:02:11.8]} 20... Rg6 {[%clk 0:01:13.2]} 21. Qxb7
{[%clk 0:02:02]} 21... Qd7 {[%clk 0:00:49.7]} 22. Qxd7+ {[%clk 0:01:46.2]} 22...
Rxd7 {[%clk 0:00:50.6]} 23. Rad1 {[%clk 0:01:40]} 23... Ne2 {[%clk 0:00:36.5]}
24. c4 {[%clk 0:01:21.5]} 24... Nc3 {[%clk 0:00:26.5]} 25. Rxd7 {[%clk
0:00:58.3]} 25... Kxd7 {[%clk 0:00:27.4]} 26. Ng3 {[%clk 0:00:54]} 26... Nxa2
{[%clk 0:00:24.7]} 27. b5 {[%clk 0:00:54.4]} 27... cxb5 {[%clk 0:00:18.2]} 28.
cxb5 {[%clk 0:00:55.3]} 28... Nc3 {[%clk 0:00:18.9]} 29. b6 {[%clk 0:00:53.5]}
29... Na4 {[%clk 0:00:11.5]} 30. Rb1 {[%clk 0:00:40.8]} 30... Rg8 {[%clk
0:00:11.6]} 31. Kg2 {[%clk 0:00:28.4]} 31... Rb8 {[%clk 0:00:10.8]} 32. b7
{[%clk 0:00:29]} 32... Nc5 {[%clk 0:00:11.2]} 33. Rb6 {[%clk 0:00:24.7]} 33...
Rxb7 {[%clk 0:00:07.6]} 34. Rxf6 {[%clk 0:00:24.7]} 34... Ke7 {[%clk 0:00:05.5]}
35. Rh6 {[%clk 0:00:23.8]} 35... Rb2+ {[%clk 0:00:06]} 36. Kf3 {[%clk
0:00:23.9]} 36... Ne6 {[%clk 0:00:05.1]} 37. Nf5+ {[%clk 0:00:20.1]} 37... Kd7
{[%clk 0:00:05.7]} 38. h4 {[%clk 0:00:20.5]} 38... Rb3+ {[%clk 0:00:05.7]} 39.
Ke2 {[%clk 0:00:20.7]} 39... Nf4+ {[%clk 0:00:04.8]} 40. Kd2 {[%clk 0:00:21.1]}
40... Rd3+ {[%clk 0:00:04.9]} 41. Kc2 {[%clk 0:00:21]} 41... Rf3 {[%clk
0:00:04.8]} 42. Rxh7 {[%clk 0:00:20.1]} 42... Ke6 {[%clk 0:00:04.9]} 43. Rh8
{[%clk 0:00:19.7]} 43... Rh3 {[%clk 0:00:04.2]} 44. Re8+ {[%clk 0:00:17.3]}
44... Kd7 {[%clk 0:00:04.2]} 45. Rxe5 {[%clk 0:00:16.9]} 45... Ng6 {[%clk
0:00:03.7]} 46. Ra5 {[%clk 0:00:13.2]} 46... Nxh4 {[%clk 0:00:02.7]} 47. Nd4
{[%clk 0:00:12.9]} 47... Ng6 {[%clk 0:00:02.7]} 48. e5 {[%clk 0:00:12.1]} 48...
Nxe5 {[%clk 0:00:02.7]} 49. Rxe5 {[%clk 0:00:11.2]} 49... f6 {[%clk 0:00:03.6]}
50. Ra5 {[%clk 0:00:10.7]} 50... Rh2+ {[%clk 0:00:04.2]} 51. Kd3 {[%clk
0:00:10.9]} 51... f5 {[%clk 0:00:05.1]} 52. Nxf5 {[%clk 0:00:10.5]} 52... Rh1
{[%clk 0:00:05.5]} 53. Ke4 {[%clk 0:00:10.1]} 53... Re1+ {[%clk 0:00:05.5]} 54.
Kd5 {[%clk 0:00:10.3]} 54... Rd1+ {[%clk 0:00:06.1]} 55. Nd4 {[%clk 0:00:10.4]}
55... Ke7 {[%clk 0:00:06.8]} 56. Ra6 {[%clk 0:00:10.8]} 56... Re1 {[%clk
0:00:06.5]} 57. Rh6 {[%clk 0:00:09.9]} 57... Rd1 {[%clk 0:00:06.4]} 58. Re6+
{[%clk 0:00:09.3]} 58... Kd7 {[%clk 0:00:06.4]} 59. Re2 {[%clk 0:00:09.4]} 59...
Kc7 {[%clk 0:00:06]} 60. Re7+ {[%clk 0:00:08.7]} 60... Kb6 {[%clk 0:00:05.8]}
61. Rd7 {[%clk 0:00:08.9]} 61... Rh1 {[%clk 0:00:05.3]} 62. Nf3 {[%clk
0:00:07.4]} 62... Rd1+ {[%clk 0:00:05.4]} 63. Nd4 {[%clk 0:00:07.2]} 63... Rh1
{[%clk 0:00:06.3]} 64. Re7 {[%clk 0:00:07.3]} 64... Rh5+ {[%clk 0:00:06]} 65.
Kc4 {[%clk 0:00:07.3]} 65... Rh1 {[%clk 0:00:06.6]} 66. Re6+ {[%clk 0:00:07.3]}
66... Kc7 {[%clk 0:00:07.1]} 67. Kc5 {[%clk 0:00:07.8]} 67... Rc1+ {[%clk
0:00:07.3]} 68. Kd5 {[%clk 0:00:08.2]} 68... Rd1 {[%clk 0:00:07.1]} 69. Re7+
{[%clk 0:00:08.1]} 69... Kb6 {[%clk 0:00:07.2]} 70. Rh7 {[%clk 0:00:08.6]} 70...
Rd2 {[%clk 0:00:07.3]} 71. Kc4 {[%clk 0:00:08.3]} 71... Rd1 {[%clk 0:00:07.2]}
72. Nf5 {[%clk 0:00:08]} 72... Rc1+ {[%clk 0:00:07.4]} 73. Kd5 {[%clk
0:00:08.4]} 73... Rd1+ {[%clk 0:00:08]} 74. Ke5 {[%clk 0:00:08.8]} 74... Re1+
{[%clk 0:00:08.3]} 75. Kd6 {[%clk 0:00:08.8]} 75... Rd1+ {[%clk 0:00:08.6]} 76.
Ke6 {[%clk 0:00:09.1]} 76... Re1+ {[%clk 0:00:08.9]} 77. Kd7 {[%clk 0:00:09.6]}
77... Rd1+ {[%clk 0:00:09.2]} 78. Nd6 {[%clk 0:00:10]} 78... Kc5 {[%clk
0:00:09.8]} 79. Rh5+ {[%clk 0:00:10.4]} 79... Kd4 {[%clk 0:00:10]} 80. Ke6
{[%clk 0:00:10.3]} 80... Ke3 {[%clk 0:00:10.4]} 81. Re5+ {[%clk 0:00:08.7]}
81... Kf4 {[%clk 0:00:10.4]} 82. Re4+ {[%clk 0:00:08.5]} 82... Kf3 {[%clk
0:00:10.7]} 83. Ra4 {[%clk 0:00:08.4]} 83... Rb1 {[%clk 0:00:10.5]} 84. Nf7
{[%clk 0:00:06.1]} 84... Rb6+ {[%clk 0:00:10.4]} 85. Kf5 {[%clk 0:00:06.2]}
85... Rb5+ {[%clk 0:00:10.7]} 86. Ne5+ {[%clk 0:00:06.7]} 86... Ke3 {[%clk
0:00:10.5]} 87. Re4+ {[%clk 0:00:07.1]} 87... Kf2 {[%clk 0:00:10.4]} 88. Rf4+
{[%clk 0:00:06.7]} 88... Ke3 {[%clk 0:00:10.1]} 89. Rh4 {[%clk 0:00:07.2]} 89...
Rb8 {[%clk 0:00:09.7]} 90. Re4+ {[%clk 0:00:06.6]} 90... Kf2 {[%clk 0:00:09.8]}
91. Ng4+ {[%clk 0:00:07]} 91... Kf3 {[%clk 0:00:07.9]} 92. Re3+ {[%clk 0:00:07]}
92... Kg2 {[%clk 0:00:08.5]} 93. Ra3 {[%clk 0:00:07.6]} 93... Rf8+ {[%clk
0:00:08.7]} 94. Ke4 {[%clk 0:00:08]} 94... Re8+ {[%clk 0:00:08.9]} 95. Ne5
{[%clk 0:00:08.3]} 95... Kf2 {[%clk 0:00:08.7]} 96. Rf3+ {[%clk 0:00:07.2]}
96... Kg2 {[%clk 0:00:08.1]} 97. Rf7 {[%clk 0:00:06.9]} 97... Kg3 {[%clk
0:00:07.7]} 98. Rf5 {[%clk 0:00:05.8]} 98... Kg2 {[%clk 0:00:08.1]} 99. Ke3
{[%clk 0:00:06.2]} 99... Rg8 {[%clk 0:00:07.6]} 100. Ke2 {[%clk 0:00:05.6]}
100... Rg7 {[%clk 0:00:07.4]} 101. Rf3 {[%clk 0:00:05.4]} 101... Re7 {[%clk
0:00:07.1]} 102. Re3 {[%clk 0:00:05]} 1/2-1/2

[Event "*** Titled Tuesday Blitz"]
[Site "Chess.com"]
[Date "2021.04.27"]
[Round "9"]
[White "MVM2008"]
[Black "ferch1ni"]
[Result "1-0"]
[WhiteElo "2274"]
[BlackElo "2354"]
[TimeControl "180+1"]
[EndTime "11:39:23 PDT"]
[Termination "MVM2008 won by checkmate"]

1. e4 {[%clk 0:03:00.9]} 1... c5 {[%clk 0:03:00.1]} 2. b4 {[%clk 0:02:58.2]}
2... cxb4 {[%clk 0:02:59.7]} 3. c3 {[%clk 0:02:57.1]} 3... bxc3 {[%clk
0:02:58.1]} 4. Nxc3 {[%clk 0:02:58]} 4... g6 {[%clk 0:02:57]} 5. d4 {[%clk
0:02:57]} 5... Bg7 {[%clk 0:02:57.6]} 6. Nf3 {[%clk 0:02:56.4]} 6... d6 {[%clk
0:02:58.2]} 7. Bd2 {[%clk 0:02:52.3]} 7... Nf6 {[%clk 0:02:57.4]} 8. h4 {[%clk
0:02:49.5]} 8... h5 {[%clk 0:02:56.5]} 9. Bd3 {[%clk 0:02:48.1]} 9... Bg4 {[%clk
0:02:36.7]} 10. Qa4+ {[%clk 0:02:38]} 10... Nbd7 {[%clk 0:02:34.1]} 11. e5
{[%clk 0:02:34.1]} 11... dxe5 {[%clk 0:02:31.3]} 12. dxe5 {[%clk 0:02:35]} 12...
Nh7 {[%clk 0:02:30.9]} 13. Bc4 {[%clk 0:02:02.1]} 13... O-O {[%clk 0:02:24.3]}
14. e6 {[%clk 0:01:52.7]} 14... Nb6 {[%clk 0:02:12.3]} 15. exf7+ {[%clk
0:01:50.4]} 15... Kh8 {[%clk 0:02:10.5]} 16. Qb5 {[%clk 0:01:44.1]} 16... Rc8
{[%clk 0:02:00]} 17. Ne5 {[%clk 0:01:40.3]} 17... Nxc4 {[%clk 0:01:53.3]} 18.
Nxg6# {[%clk 0:01:37.8]} 1-0